Workbook

Sheet Start
F5: Exceli töökeskkond
I12: Sisukord

Sheet Sisukord
B3: Exceli töökeskkond
B5: Abivahendid | D5: Materjalid veebis (TTÜ)
B6: Rakenduse struktuur ja põhikomponendid
B7: Rakenduse põhiobjektid | D7: Excel 2016, spikker (Microsoft)
B8: Klassimudel | D8: Excel 2013 lühijuhend (Microsoft)
B9: Exceli kasutajaliides
B10: Ekraanikuva ja standardiides
B11: Erinevate versioonide kasutajaliidesed
B12: Objektimenüüd
B13: Töövihikud
B14: Töölehed
B15: Diagrammilehed
B16: Põhitegevused lehtedega
B17: Lahtrid, lahtriplokid, piirkonnad
B18: Põhiomadused
B19: Põhitegevused
B20: Harjutus lahtriplokidega
B21: Juhuslike arvude kasutamine
B22: Read ja veerud
B23: Harjutus ridade ja veergudega
B24: Testike

Sheet Abivahendid
B5: Kommentaar
B6: Autor | C6: Abiinfo spikrid klahv F1
G15: Lingid antud vihikus | I15: Lingid teistele dokumentidele
G16: Objektid | I16: Word. Exceli e-õpik
G17: Tööleht | I17: Excel. Mäng "Jalka"
G18: Veebi leheküljed (saidid)
C19: Delfi | E19: tehke link | G19: Microsofti kodusait
G20: Google kodusait

Sheet Rak_Str
G1: veeb
B2: Exceli rakenduse struktuur ja põhikomponendid
B3: Töökeskkond ja rakenduse sisu
C4: Töökeskkond:
C5: kasutajaliides,
C6: töövihikud
C7: Rakenduse sisu:
C8: andmed
C9: valemid,
C10: VBA protseduurid

Sheet Objektid
D1: Modelleerimine

Sheet Klassimudel
D1: Modelleerimine
H3: Võrdluseks

Sheet Liides_2016
B1: Excel 2016 kasutajaliides

Sheet Liidesed
A3: Exceli erinevate versioonide kasutajaliidesed
B40: Goole Sheets

Sheet Objektimenüüd
E18: Kus on ridade ja veergude menüüd?
H31: See on pisike tekst

Sheet Töövihik
E1: veeb | G1: ekraanivisioon
A2: Töövihik | L2: Nimi | M2: Palk
L3: Kask | M3: 1399
L4: Saar | M4: 870
L5: Paju | M5: 2400
L6: Tamm | M6: 5600
L7: Lepp | M7: 1500

Sheet Tööleht
F1: veeb | I1: Videoklipp
B2: Tööleht - struktuur, põhiomadused
K3: Müügid (tuh. eur.) | N3: F9
K4: Kv | L4: Liha | M4: Piim | N4: Suhkur | O4: Kokku
K5: 1 | L5: =100+INT(200*RAND()) -> 119 | M5: =100+INT(200*RAND()) -> 275 | N5: 129 | O5: =SUM(L5:N5) -> 523
K6: 2 | L6: =100+INT(200*RAND()) -> 160 | M6: 221 | N6: 159 | O6: =SUM(L6:N6) -> 540
K7: 3 | L7: =100+INT(200*RAND()) -> 268 | M7: 111 | N7: 289 | O7: =SUM(L7:N7) -> 668
K8: 4 | L8: =100+INT(200*RAND()) -> 248 | M8: 226 | N8: 179 | O8: =SUM(L8:N8) -> 653
K9: Kokku | L9: =SUM(L5:L8) -> 795 | M9: =SUM(M5:M8) -> 833 | N9: =SUM(N5:N8) -> 756 | O9: =SUM(O5:O8) -> 2384
O31: 15 | P31: kiirus

Sheet Teg_Lehed
F1: veeb | I1: Videoklipp
B2: Põhitegevused lehtedega

Sheet Lahtriplokk
G1: veeb | J1: Videoklipp 1
B2: Lahtrid, lahtriplokid, piirkonnad

Sheet LP_Omadused
E1: veeb | F1: videoklipp 1
B3: Lahtrite ja lahtriplokkide põhiomadused | F3: maksuvaba | G3: 170 | H3: prots | I3: 0.2
B5: Omadus | D5: Nimi | E5: Tariif | F5: Tunde | G5: Palk | H5: Maks | I5: Saada
B6: aadress | D6: Ivo Kask | E6: 12 | F6: 153 | G6: =E6*F6 -> 1836 | H6: =IF(G6 <= G3, 0, I3 * (G6-G3)) -> 333.2 | I6: =G6-H6 -> 1502.8
B7: nimi | D7: Ivo Kask | E7: 12 | F7: 153 | G7: =Tariif * Tunde -> 1836 | H7: =IF(Palk <= maksuvaba, 0, prots * (Palk -maksuvaba)) -> 333.2 | I7: =Palk-Maks -> 1502.8
B8: väärtus | D8: 13 | E8: tekst | F8: 2005-04-20 | G8: TRUE
B9: valem | D9: =D8+100 -> 113 | E9: ="See on " &E8 -> See on tekst | F9: =F8+100 -> 2005-07-29 | G9: =F9<F8 -> FALSE
B10: väärtuse esitusviis | D10: 13 | E10: 13 | F10: 13 | G10: 0.13 | H10: 13 | I10: =NOW() -> 2016-09-04T10:10:07.470 | J10: =NOW() -> 2016-09-04T10:10:07.470
B11: joondus | D11: vasakule | E11: keskele | F11: paremale | G11: 13 | H11: 13 | I11: 13
B12: taane | D12: null | E12: üks | F12: kaks | G12: kolm | H12: neli | I12: Taane | K12: vormindamine
B13: kirja omadused | D13: väike 13 | E13: suur 13 | F13: punane 13 | G13: kaldu 13 | I13: null
B14: interjöör | E14: 13 | F14: 13 | G14: 13 | I14: üks
B15: äärised | G15: 13 | I15: kaks
B16: kommentaar | D16: lisamine | E16: lisage siia kommentaar | I16: kolm
B17: hüperlink | D17: sisukord | E17: TTÜ | F17: vormindamine | I17: neli
B18: ...

Sheet LP_Tegev
E1: veeb | G1: videoklipp 2 | I1: videoklipp 3 | L1: AS Karu & pojad | O1: Puidu müük | Q1: august | R1: 2013
L3: Kuupäev | M3: liik | N3: sort | O3: hind | P3: kogus | Q3: summa | R3: Ostja
L4: 2013-08-01 | M4: kuusik | N4: 1 | O4: 55 | P4: 34.8 | Q4: =O4*P4 -> 1914 | R4: Jänes
L5: 2013-08-01 | M5: kask | N5: 1 | O5: 48 | P5: 45 | Q5: 2160 | R5: Hunt
L6: 2013-08-01 | M6: kuuskgjhy | N6: 3 | O6: 52 | P6: 25.2 | Q6: 1310.4 | R6: Siil
L7: 2013-08-03 | M7: küte | N7: 1 | O7: 14.5 | P7: 56.2 | Q7: 814.9 | R7: Rebane
L8: 2013-08-03 | M8: haab | N8: 2 | O8: 25 | P8: 64.8 | Q8: 1620 | R8: Hunt
L9: 2013-08-04 | M9: mänd | N9: 2 | O9: 53 | P9: 21 | Q9: 1113 | R9: Põder
L10: 2013-08-04 | M10: lepp | N10: 1 | O10: 42 | P10: 34.5 | Q10: 1449 | R10: Hunt
L11: 2013-08-04 | M11: vaher | N11: 1 | O11: 67.5 | P11: 63 | Q11: 4252.5 | R11: Rebane
L12: 2013-08-04 | M12: kask | N12: 1 | O12: 48 | P12: 45 | Q12: 2160 | R12: Mäger
L13: 2013-08-06 | M13: lepp | N13: 2 | O13: 39 | P13: 25 | Q13: 975 | R13: Jänes
L14: 2013-08-07 | M14: haab | N14: 1 | O14: 36 | P14: 32 | Q14: 1152 | R14: Sokk
L15: 2023-08-08 | M15: kuusk | N15: 3 | O15: 52 | P15: 45.2 | Q15: 2350.4 | R15: Kits
O17: Kokku

Sheet LP_Harj
F1: veeb
B2: Lahtriplokid. Harjutus
B4: Tabel 1 | J4: Tabel 2
C6: T_2 | D6: T_1 | E6: T_5 | F6: T_6 | G6: T_3 | H6: T_4
B7: R_2 | C7: 3 | D7: 2 | E7: 6 | F7: 7 | G7: 4 | H7: 5 | K7: V_1 | L7: V_2 | M7: V_3 | N7: V_4
B8: R_5 | C8: 6 | D8: 5 | E8: 9 | F8: 10 | G8: 7 | H8: 8 | J8: P_1 | K8: 11 | L8: 12 | M8: 13 | N8: 14
B9: R_3 | C9: 4 | D9: 3 | E9: 7 | F9: 8 | G9: 5 | H9: 6 | J9: P_2 | K9: 12 | L9: 13 | M9: 14 | N9: 15
B10: R_4 | C10: 5 | D10: 4 | E10: 8 | F10: 9 | G10: 6 | H10: 7 | J10: P_3 | K10: 13 | L10: 14 | M10: 15 | N10: 16
B11: R_9 | C11: 10 | D11: 9 | E11: 13 | F11: 14 | G11: 11 | H11: 12 | J11: P_4 | K11: 14 | L11: 15 | M11: 16 | N11: 17
B12: R_8 | C12: 9 | D12: 8 | E12: 12 | F12: 13 | G12: 10 | H12: 11 | J12: P_5 | K12: 15 | L12: 16 | M12: 17 | N12: 18
B13: R_1 | C13: 2 | D13: 1 | E13: 5 | F13: 6 | G13: 3 | H13: 4
B14: R_6 | C14: 7 | D14: 6 | E14: 10 | F14: 11 | G14: 8 | H14: 9
B15: R_7 | C15: 8 | D15: 7 | E15: 11 | F15: 12 | G15: 9 | H15: 10
C18: Tabel 3
D20: S_1 | E20: S_2 | F20: S_3 | G20: S_4
C21: U_1 | D21: 21 | E21: 22 | F21: 23 | G21: 24
C22: U_2 | D22: 22 | E22: 23 | F22: 24 | G22: 25

Sheet Read_Veerud
E1: Videoklipp: Read ja veerud | I1: veeb
A2: 1 | B2: 1 | C2: 1 | D2: 1 | E2: 1 | F2: 1 | G2: 1 | H2: 1 | I2: 1 | J2: 1 | L2: 1 | M2: 2 | N2: 3 | O2: 4 | P2: 5 | Q2: 6 | R2: 7 | U2: 7
A3: 2 | B3: 2 | C3: 2 | D3: 2 | E3: 2 | F3: 2 | G3: 2 | H3: 2 | I3: 2 | J3: 2 | L3: 1 | M3: 2 | N3: 3 | O3: 4 | P3: 5 | Q3: 6 | R3: 7 | U3: 7
A4: 3 | B4: 3 | C4: 3 | D4: 3 | E4: 3 | F4: 3 | G4: 3 | H4: 3 | I4: 3 | J4: 3 | L4: 1 | M4: 2 | N4: 3 | O4: 4 | P4: 5 | Q4: 6 | R4: 7 | U4: 7
A5: 4 | B5: 4 | C5: 4 | D5: 4 | E5: 4 | F5: 4 | G5: 4 | H5: 4 | I5: 4 | J5: 4 | L5: 1 | M5: 2 | N5: 3 | O5: 4 | P5: 5 | Q5: 6 | R5: 7 | U5: 7
A6: 5 | B6: 5 | C6: 5 | D6: 5 | E6: 5 | F6: 5 | G6: 5 | H6: 5 | I6: 5 | J6: 5 | L6: 1 | M6: 2 | N6: 3 | O6: 4 | P6: 5 | Q6: 6 | R6: 7 | U6: 7
A7: 6 | B7: 6 | C7: 6 | D7: 6 | E7: 6 | F7: 6 | G7: 6 | H7: 6 | I7: 6 | J7: 6 | L7: 1 | M7: 2 | N7: 3 | O7: 4 | P7: 5 | Q7: 6 | R7: 7 | U7: 7
A8: 7 | B8: 7 | C8: 7 | D8: 7 | E8: 7 | F8: 7 | G8: 7 | H8: 7 | I8: 7 | J8: 7 | L8: 1 | M8: 2 | N8: 3 | O8: 4 | P8: 5 | Q8: 6 | R8: 7 | U8: 7
L9: 1 | M9: 2 | N9: 3 | O9: 4 | P9: 5 | Q9: 6 | R9: 7 | U9: 7
L10: 1 | M10: 2 | N10: 3 | O10: 4 | P10: 5 | Q10: 6 | R10: 7 | U10: 7

Sheet Re_Ve_H1
B1: 4 | C1: 10 | D1: 5 | E1: 6 | F1: 7 | G1: 2 | H1: 3 | I1: 8 | J1: 9 | K1: 11 | L1: L | N1: K | S1: K | T1: K
A2: 10 | K2: 10 | P2: 0.13217
A3: 2 | K3: 2 | P3: Täna on
A4: 3 | K4: 3 | P4: =TODAY() -> 2016-09-04
A5: 7 | K5: 7 | P5: Kasemets
A6: 4 | K6: 4 | P6: kell on
A7: 5 | K7: 5 | P7: =NOW() -> 42617.4237
A8: 8 | K8: 8 | P8: 13670
A9: 6 | K9: 6 | P9: Raivo
A10: 9 | K10: 9 | P10: 27.429
A11: 11 | B11: 4 | C11: 10 | D11: 5 | E11: 6 | F11: 7 | G11: 2 | H11: 3 | I11: 8 | J11: 9 | K11: 11
A12: L
A15: K
A17: K
A19: K

Sheet Formaat
F1: Ülesanne: (võrrelge tulemusega paremal) | O1: Tulemus võrdluseks
B2: Veerust laiem tekst | F2: Joonda tekst (lahtris B2) parema serva järgi
B3: Veerust laiem tekst | F3: Tsentreeri tekst (lahtris B3) üle lahtrite B3:D3
B4: Veerust laiem tekst | F4: Murra teksti
B6: xy | F6: Joonda tekst paremale
B7: xy | F7: Tsentreeri tekst ja määra kaldkiri
B8: xy | F8: Täida lahter servast servani tekstiga
B10: vert | F10: kuva tekst vertikaalselt (tähed üksteise all, mitte kõrval)
B11: alt üles | F11: keera tekst külili suunaga alt üles
B12: ülalt alla | F12: keera tekst külili suunaga ülalt alla
B13: keratud | F13: keera tekst 45° võrra üles
B15: Times new roman | F15: sinine kahekordselt allajoonitud tekst fondiga "Times new roman" suurusega 14 pt
B17: KIRJU | F17: lahtri muster: rohelisel põhjal punased triibud
B19: raamjooned | F19: lahtri ülaserva sinine joon ja alaserva punane topeltjoon
B20: kommentaar | F20: lisage lahtrile kommentaar: See on kommentaar
B21: null
B22: üks | F22: lisage lahtrile üks taane
B23: kaks | F23: lisage lahtrile kaks taanet
B24: kolm | F24: lisage lahtrile kolm taanet
B25: TTÜ | F25: lisage lahtrile hüperlink TTÜ kodulehele

Sheet Number Format
B2: Number kategooria erinevad variandid | C2: Currency kategooria erinevad variandid | D2: Accounting | E2: Fraction | F2: Percentage | G2: Scientific | H2: Date ning Time kategooriate erinevad variandid | I2: Text
B3: -45350.455 | C3: -45350.455 | D3: -350.455 | E3: 0.0067 | F3: 0.0067 | G3: 0.0067 | H3: 39350.46429 | I3: -350.455
B4: -45350.455 | C4: -45350.455 | D4: 417.05 | E4: 2.05 | F4: 2.05 | G4: 2.05 | H4: 39350.46429 | I4: 417.05
B5: -45350.455 | C5: -45350.455 | D5: 55.55 | E5: 0.47 | F5: 0.47 | G5: 0.47 | H5: 39350.46429 | I5: 72
B6: -45350.455 | C6: -45350.455 | D6: 72 | E6: -15.8 | F6: -15.8 | G6: -15.8 | H6: 39350.46429 | I6: 981.3333
D7: 981.3333 | H7: 39350.46429 | I7: -35
D8: -35 | H8: 39350.46429 | I8: -417.82
D9: -417.82 | H9: 39350.46429 | I9: 55.55
H10: 39350.46429
H11: 39350.46429
H12: 39350.46429

Sheet Värvilised summad
H2: Reasummad | K2: Värvilised summad
B4: 16 | C4: 18.81 | D4: -15 | E4: 798 | F4: 4.358
B5: 32 | C5: 113 | D5: 45 | E5: 654 | F5: 12
B6: 57 | C6: -45 | D6: 987 | E6: -36 | F6: -64
B7: 5.579 | C7: -78 | D7: 45 | E7: -9652 | F7: -88
B8: -8 | C8: -66.67 | D8: 3223 | E8: -54 | F8: 0
B9: 19 | C9: 23 | D9: 1563 | E9: 13 | F9: -6876
B10: 44.12 | C10: 91 | D10: 168 | E10: 737 | F10: 32
B11: 787 | C11: 121 | D11: -976 | E11: 646 | F11: 113
B12: 21 | C12: 45.45 | D12: -56 | E12: 151 | F12: 787
B13: 97 | C13: 952 | D13: 2 | E13: 453 | F13: -65
B14: -97 | C14: 13 | D14: 0.275 | E14: -81 | F14: 32.7
B15: -11 | C15: 77 | D15: 0.15 | E15: 79 | F15: 54
B16: 0 | C16: 153 | D16: 384 | E16: -99 | F16: 79.5
B17: 79.08 | C17: 1.005 | D17: -6.45 | E17: -999 | F17: -33.33
B18: 55 | C18: -30 | D18: 12 | E18: -9999 | F18: -8
A20: Veerusummad

Sheet Kontroll
H3: Reasummad | K3: Värvilised summad
H5: 822.168 | K5: 2793
H6: 856 | K6: 81.16
H7: 899 | K7: -20068
H8: -9767.421 | K8: 177.417
H9: 3094.33 | K9: 1469
H10: -5258
H11: 1072.12 | K11: -15547.423
H12: 691
H13: 948.45
H14: 1439
H15: -132.025
H16: 199.15
H17: 517.5
H18: -958.695
H19: -9970
A21: Veerusummad | B21: 1096.779 | C21: 1388.595 | D21: 5375.975 | E21: -17389 | F21: -6019.772 | I21: -15547.423
H22: -15547.423

Sheet Juhus
B2: Juhuslikud arvud. Funktsioon RAND()
B10: mini | C10: 1 | D10: maxi | E10: 64
M11: keskmine
B12: 31 | C12: 56 | D12: 47 | E12: 46 | F12: 23 | G12: 25 | H12: 6 | I12: 34 | J12: 64 | K12: 16 | M12: =IF(INDEX(numbrid, 10)="", "", AVERAGE(numbrid)) -> 34.8
I36: =b * RAND() -> 7.141021868 | J36: 99.58693058 | K36: 19.15825095 | L36: 32.12819516
I37: 30.44141437 | J37: 60.53603913 | K37: 49.69743664 | L37: 21.91350613
I38: 96.41561172 | J38: 73.97531518 | K38: 2.525119701 | L38: 62.56841746
I39: 31.29443624 | J39: 10.38680826 | K39: 31.34279157 | L39: 15.99258956
I40: 77.75645221 | J40: 72.50803295 | K40: 59.37477613 | L40: 96.34734779
I41: 31.41079841 | J41: 34.02068936 | K41: 56.21177953 | L41: 96.56132582
I64: a | J64: 1 | K64: b | L64: 100
